[Event "Titled Tuesday Blitz May 23 Early 2023"]
[White "Kulkarni, Rakesh"]
[Black "Wagner, Dennis"]
[WhiteFideId "5037077"]
[BlackFideId "24650684"]
[WhiteElo "2252"]
[BlackElo "2478"]
[Result "0-1"]
[Round "03"]
[TimeControl "180+2"]
[Date "2023.05.23"]
[WhiteClock "0:00:44"]
[BlackClock "0:00:48"]

1. e4 {[%clk 0:02:55]}  c5 {[%clk 0:02:59]} 2. c3 {[%clk 0:02:55]}  e6 {[%clk 0:02:55]} 3. d4 {[%clk 0:02:54]}  d5 {[%clk 0:02:55]} 4. exd5 {[%clk 0:02:55]}  exd5 {[%clk 0:02:52]} 5. Nf3 {[%clk 0:02:55]}  Nc6 {[%clk 0:02:50]} 6. Bd3 {[%clk 0:02:55]}  Bd6 {[%clk 0:02:46]} 7. O-O {[%clk 0:02:55]}  Nge7 {[%clk 0:02:47]} 8. dxc5 {[%clk 0:02:56]}  Bxc5 {[%clk 0:02:47]} 9. Nbd2 {[%clk 0:02:56]}  O-O {[%clk 0:02:47]} 10. Nb3 {[%clk 0:02:57]}  Bb6 {[%clk 0:02:47]} 11. Bf4 {[%clk 0:02:58]}  Bg4 {[%clk 0:02:40]} 12. h3 {[%clk 0:02:57]}  Bh5 {[%clk 0:02:40]} 13. Re1 {[%clk 0:02:58]}  Re8 {[%clk 0:02:36]} 14. Bxh7+ {[%clk 0:02:46]}  Kh8 {[%clk 0:02:10]} 15. Bc2 {[%clk 0:02:40]}  Ng6 {[%clk 0:02:03]} 16. Bh2 {[%clk 0:02:21]}  Rxe1+ {[%clk 0:02:01]} 17. Qxe1 {[%clk 0:02:17]}  Bxf3 {[%clk 0:02:01]} 18. gxf3 {[%clk 0:02:18]}  Nh4 {[%clk 0:01:48]} 19. Qf1 {[%clk 0:01:47]}  Nxf3+ {[%clk 0:01:42]} 20. Kh1 {[%clk 0:01:48]}  Nxh2 {[%clk 0:01:36]} 21. Kxh2 {[%clk 0:01:47]}  Qh4 {[%clk 0:01:25]} 22. Rd1 {[%clk 0:01:45]}  Bxf2 {[%clk 0:01:05]} 23. Qd3 {[%clk 0:01:42]}  Ne5 {[%clk 0:00:51]} 24. Qf5 {[%clk 0:01:30]}  Qg3+ {[%clk 0:00:50]} 25. Kh1 {[%clk 0:01:29]}  g6 {[%clk 0:00:50]} 26. Qf6+ {[%clk 0:01:21]}  Kg8 {[%clk 0:00:50]} 27. Bxg6 {[%clk 0:00:44]}  Qxh3# {[%clk 0:00:48]} 0-1


[Site "https://www.chess.com"]

[Event "Titled Tuesday Blitz May 23 Early 2023"]
[White "Dimitrov, Atanas"]
[Black "Ljukin, Sergei"]
[WhiteFideId "2901315"]
[BlackFideId "14102200"]
[WhiteElo "2703"]
[BlackElo "2312"]
[Result "1-0"]
[Round "03"]
[TimeControl "180+2"]
[Date "2023.05.23"]
[WhiteClock "0:00:12"]
[BlackClock "0:00:00"]

1. Nf3 {[%clk 0:03:00]}  d5 {[%clk 0:02:59]} 2. c4 {[%clk 0:03:01]}  c6 {[%clk 0:02:59]} 3. b3 {[%clk 0:03:01]}  Nf6 {[%clk 0:02:58]} 4. Bb2 {[%clk 0:03:02]}  e6 {[%clk 0:02:58]} 5. e3 {[%clk 0:03:02]}  Nbd7 {[%clk 0:02:59]} 6. Nc3 {[%clk 0:03:03]}  Bd6 {[%clk 0:02:59]} 7. Be2 {[%clk 0:03:03]}  e5 {[%clk 0:02:59]} 8. d3 {[%clk 0:03:03]}  a6 {[%clk 0:02:57]} 9. O-O {[%clk 0:03:03]}  O-O {[%clk 0:02:57]} 10. Rc1 {[%clk 0:03:04]}  Qe7 {[%clk 0:02:56]} 11. cxd5 {[%clk 0:03:01]}  cxd5 {[%clk 0:02:56]} 12. h3 {[%clk 0:02:56]}  b5 {[%clk 0:02:55]} 13. Nd2 {[%clk 0:02:55]}  Bb7 {[%clk 0:02:51]} 14. Re1 {[%clk 0:02:55]}  Rfd8 {[%clk 0:02:30]} 15. Nf1 {[%clk 0:02:42]}  Nf8 {[%clk 0:02:24]} 16. Ng3 {[%clk 0:02:41]}  Qd7 {[%clk 0:02:14]} 17. a3 {[%clk 0:02:25]}  Ng6 {[%clk 0:02:09]} 18. b4 {[%clk 0:02:23]}  Rac8 {[%clk 0:02:00]} 19. Bf1 {[%clk 0:02:11]}  Bb8 {[%clk 0:01:49]} 20. Nh5 {[%clk 0:01:54]}  Qd6 {[%clk 0:01:32]} 21. Nxf6+ {[%clk 0:01:49]}  Qxf6 {[%clk 0:01:32]} 22. Ne2 {[%clk 0:01:43]}  d4 {[%clk 0:01:17]} 23. Rxc8 {[%clk 0:01:27]}  Bxc8 {[%clk 0:01:15]} 24. exd4 {[%clk 0:01:10]}  exd4 {[%clk 0:01:15]} 25. Bxd4 {[%clk 0:01:04]}  Qd6 {[%clk 0:01:08]} 26. g3 {[%clk 0:01:05]}  h5 {[%clk 0:00:50]} 27. Bc5 {[%clk 0:00:59]}  Qd5 {[%clk 0:00:31]} 28. Bg2 {[%clk 0:00:58]}  Qxd3 {[%clk 0:00:21]} 29. Qxd3 {[%clk 0:00:58]}  Rxd3 {[%clk 0:00:21]} 30. Nd4 {[%clk 0:00:59]}  Bd7 {[%clk 0:00:17]} 31. Nc6 {[%clk 0:00:43]}  Bc7 {[%clk 0:00:13]} 32. h4 {[%clk 0:00:26]}  Kh7 {[%clk 0:00:09]} 33. Be4 {[%clk 0:00:19]}  Rxa3 {[%clk 0:00:08]} 34. Rd1 {[%clk 0:00:20]}  Bxc6 {[%clk 0:00:08]} 35. Bxc6 {[%clk 0:00:21]}  Be5 {[%clk 0:00:07]} 36. Rd7 {[%clk 0:00:19]}  Rc3 {[%clk 0:00:04]} 37. Rxf7 {[%clk 0:00:16]}  Bf6 {[%clk 0:00:01]} 38. Be4 {[%clk 0:00:16]}  a5 {[%clk 0:00:01]} 39. Ra7 {[%clk 0:00:15]}  axb4 {[%clk 0:00:01]} 40. Bxb4 {[%clk 0:00:13]}  Rc4 {[%clk 0:00:01]} 41. Bxg6+ {[%clk 0:00:12]}  Kxg6 {[%clk 0:00:02]} 42. Bd2 {[%clk 0:00:12]}  b4 {[%clk 0:00:01]} 43. Rb7 {[%clk 0:00:12]}  Bc3 {[%clk 0:00:02]} 44. Be3 {[%clk 0:00:13]}  Rc5 {[%clk 0:00:00]} 45. Bxc5 {[%clk 0:00:12]} 1-0


[Site "https://www.chess.com"]

[Event "Titled Tuesday Blitz May 23 Early 2023"]
[White "Barbot, Pierre"]
[Black "Matinian, Nikita"]
[WhiteFideId "663727"]
[BlackFideId "24129100"]
[WhiteElo "2431"]
[BlackElo "2422"]
[Result "0-1"]
[Round "03"]
[TimeControl "180+2"]
[Date "2023.05.23"]
[WhiteClock "0:00:02"]
[BlackClock "0:00:56"]

1. d4 {[%clk 0:03:00]}  Nf6 {[%clk 0:02:59]} 2. Nc3 {[%clk 0:02:59]}  d5 {[%clk 0:02:58]} 3. Bf4 {[%clk 0:02:58]}  c6 {[%clk 0:02:58]} 4. e3 {[%clk 0:02:50]}  g6 {[%clk 0:02:57]} 5. h4 {[%clk 0:02:46]}  h5 {[%clk 0:02:56]} 6. Nf3 {[%clk 0:02:45]}  Bg4 {[%clk 0:02:54]} 7. Be2 {[%clk 0:02:38]}  Nbd7 {[%clk 0:02:53]} 8. Qd2 {[%clk 0:02:38]}  Bxf3 {[%clk 0:02:51]} 9. Bxf3 {[%clk 0:02:37]}  Qb6 {[%clk 0:02:52]} 10. O-O-O {[%clk 0:02:34]}  a5 {[%clk 0:02:51]} 11. e4 {[%clk 0:02:12]}  e6 {[%clk 0:02:48]} 12. exd5 {[%clk 0:01:34]}  cxd5 {[%clk 0:02:47]} 13. Rhe1 {[%clk 0:01:30]}  Qc6 {[%clk 0:02:16]} 14. Qd3 {[%clk 0:01:21]}  Rc8 {[%clk 0:02:11]} 15. Nb5 {[%clk 0:01:03]}  Qb6 {[%clk 0:01:57]} 16. Qb3 {[%clk 0:00:16]}  Bb4 {[%clk 0:01:52]} 17. c3 {[%clk 0:00:13]}  Qxb5 {[%clk 0:01:51]} 18. Kb1 {[%clk 0:00:11]}  O-O {[%clk 0:01:36]} 19. cxb4 {[%clk 0:00:10]}  Qxb4 {[%clk 0:01:34]} 20. Qxb4 {[%clk 0:00:10]}  axb4 {[%clk 0:01:35]} 21. Bd6 {[%clk 0:00:10]}  Rfe8 {[%clk 0:01:17]} 22. Bxb4 {[%clk 0:00:10]}  Nb8 {[%clk 0:01:17]} 23. Bd6 {[%clk 0:00:05]}  Nc6 {[%clk 0:01:17]} 24. Be5 {[%clk 0:00:04]}  Nxe5 {[%clk 0:01:16]} 25. dxe5 {[%clk 0:00:05]}  Nd7 {[%clk 0:01:15]} 26. b3 {[%clk 0:00:03]}  Kg7 {[%clk 0:01:14]} 27. Kb2 {[%clk 0:00:03]}  Nc5 {[%clk 0:01:11]} 28. Rd2 {[%clk 0:00:03]}  Rc6 {[%clk 0:01:11]} 29. Bd1 {[%clk 0:00:03]}  Rec8 {[%clk 0:01:10]} 30. a4 {[%clk 0:00:03]}  Rb6 {[%clk 0:01:10]} 31. Re3 {[%clk 0:00:02]}  Nxa4+ {[%clk 0:01:09]} 32. Ka3 {[%clk 0:00:01]}  Nc3 {[%clk 0:01:10]} 33. Rc2 {[%clk 0:00:01]}  Ra6+ {[%clk 0:01:08]} 34. Kb4 {[%clk 0:00:01]}  d4 {[%clk 0:01:02]} 35. Rd3 {[%clk 0:00:01]}  Rb6+ {[%clk 0:00:58]} 36. Ka3 {[%clk 0:00:01]}  Ra8+ {[%clk 0:00:57]} 37. Kb2 {[%clk 0:00:01]}  Ra2+ {[%clk 0:00:56]} 38. Kc1 {[%clk 0:00:01]}  Ra1+ {[%clk 0:00:56]} 39. Kd2 {[%clk 0:00:02]}  Rxd1# {[%clk 0:00:56]} 0-1


[Site "https://www.chess.com"]

[Event "Titled Tuesday Blitz May 23 Early 2023"]
[White "Turzo, Attila"]
[Black "Jia, Haoxiang"]
[WhiteFideId "704954"]
[BlackFideId "8602999"]
[WhiteElo "2472"]
[BlackElo "2690"]
[Result "1-0"]
[Round "03"]
[TimeControl "180+2"]
[Date "2023.05.23"]
[WhiteClock "0:01:29"]
[BlackClock "0:00:40"]

1. e4 {[%clk 0:03:00]}  c5 {[%clk 0:02:57]} 2. Nf3 {[%clk 0:02:58]}  d6 {[%clk 0:02:56]} 3. d4 {[%clk 0:02:58]}  cxd4 {[%clk 0:02:55]} 4. Nxd4 {[%clk 0:02:59]}  Nf6 {[%clk 0:02:56]} 5. Nc3 {[%clk 0:03:00]}  g6 {[%clk 0:02:56]} 6. Be3 {[%clk 0:02:58]}  Bg7 {[%clk 0:02:57]} 7. f3 {[%clk 0:02:58]}  O-O {[%clk 0:02:51]} 8. Qd2 {[%clk 0:02:57]}  Nc6 {[%clk 0:02:51]} 9. Bc4 {[%clk 0:02:58]}  Bd7 {[%clk 0:02:50]} 10. O-O-O {[%clk 0:02:58]}  Rc8 {[%clk 0:02:45]} 11. Bb3 {[%clk 0:02:57]}  Ne5 {[%clk 0:02:45]} 12. Bg5 {[%clk 0:02:57]}  Rc5 {[%clk 0:02:43]} 13. Rhe1 {[%clk 0:02:54]}  b5 {[%clk 0:02:25]} 14. f4 {[%clk 0:02:51]}  Nc4 {[%clk 0:02:25]} 15. Bxc4 {[%clk 0:02:50]}  bxc4 {[%clk 0:02:25]} 16. e5 {[%clk 0:02:49]}  Nd5 {[%clk 0:02:05]} 17. exd6 {[%clk 0:02:39]}  Qa5 {[%clk 0:01:44]} 18. Nxd5 {[%clk 0:02:20]}  Qxa2 {[%clk 0:01:40]} 19. Nxe7+ {[%clk 0:01:48]}  Kh8 {[%clk 0:01:37]} 20. Qc3 {[%clk 0:01:48]}  Bg4 {[%clk 0:01:04]} 21. Qa3 {[%clk 0:01:39]}  Qxa3 {[%clk 0:00:58]} 22. bxa3 {[%clk 0:01:39]}  Bxd1 {[%clk 0:00:57]} 23. Rxd1 {[%clk 0:01:40]}  f6 {[%clk 0:00:40]} 24. Ne6 {[%clk 0:01:29]} 1-0


[Site "https://www.chess.com"]

[Event "Titled Tuesday Blitz May 23 Early 2023"]
[White "Artemenko, Oleg"]
[Black "Andreev, Konstantin"]
[WhiteFideId "14201798"]
[BlackFideId "24239305"]
[WhiteElo "2287"]
[BlackElo "2106"]
[Result "0-1"]
[Round "03"]
[TimeControl "180+2"]
[Date "2023.05.23"]
[WhiteClock "0:00:11"]
[BlackClock "0:00:05"]

1. d4 {[%clk 0:03:00]}  Nf6 {[%clk 0:02:55]} 2. c4 {[%clk 0:03:00]}  e6 {[%clk 0:02:56]} 3. Nc3 {[%clk 0:02:59]}  Bb4 {[%clk 0:02:56]} 4. e3 {[%clk 0:02:58]}  O-O {[%clk 0:02:56]} 5. Bd2 {[%clk 0:02:58]}  Re8 {[%clk 0:02:56]} 6. Nf3 {[%clk 0:02:59]}  b6 {[%clk 0:02:56]} 7. Bd3 {[%clk 0:02:56]}  Bb7 {[%clk 0:02:57]} 8. O-O {[%clk 0:02:55]}  d6 {[%clk 0:02:53]} 9. Qc2 {[%clk 0:02:50]}  e5 {[%clk 0:02:51]} 10. Ng5 {[%clk 0:02:48]}  h6 {[%clk 0:02:50]} 11. Nge4 {[%clk 0:02:48]}  Nbd7 {[%clk 0:02:48]} 12. Nxf6+ {[%clk 0:02:47]}  Nxf6 {[%clk 0:02:49]} 13. f3 {[%clk 0:02:46]}  exd4 {[%clk 0:02:44]} 14. exd4 {[%clk 0:02:47]}  d5 {[%clk 0:02:45]} 15. cxd5 {[%clk 0:01:50]}  Nxd5 {[%clk 0:02:36]} 16. Be4 {[%clk 0:01:50]}  Bf8 {[%clk 0:02:12]} 17. a3 {[%clk 0:01:31]}  Rb8 {[%clk 0:02:05]} 18. Rae1 {[%clk 0:01:30]}  Nf6 {[%clk 0:02:03]} 19. Be3 {[%clk 0:01:26]}  Qd7 {[%clk 0:01:40]} 20. Bf5 {[%clk 0:01:12]}  Qc6 {[%clk 0:01:32]} 21. Bd3 {[%clk 0:01:00]}  a6 {[%clk 0:01:30]} 22. Bf2 {[%clk 0:00:59]}  Bd6 {[%clk 0:01:27]} 23. Ne4 {[%clk 0:00:57]}  Qxc2 {[%clk 0:01:18]} 24. Nxf6+ {[%clk 0:00:57]}  gxf6 {[%clk 0:01:19]} 25. Bxc2 {[%clk 0:00:57]}  Bf4 {[%clk 0:01:17]} 26. Be4 {[%clk 0:00:55]}  Bd2 {[%clk 0:01:09]} 27. Rd1 {[%clk 0:00:54]}  Bf4 {[%clk 0:01:03]} 28. g3 {[%clk 0:00:54]}  Bd6 {[%clk 0:01:01]} 29. Rfe1 {[%clk 0:00:55]}  Kg7 {[%clk 0:00:58]} 30. Kg2 {[%clk 0:00:44]}  b5 {[%clk 0:00:58]} 31. Rc1 {[%clk 0:00:43]}  a5 {[%clk 0:00:55]} 32. h4 {[%clk 0:00:40]}  h5 {[%clk 0:00:50]} 33. Rc2 {[%clk 0:00:36]}  a4 {[%clk 0:00:45]} 34. Rce2 {[%clk 0:00:33]}  Ba6 {[%clk 0:00:37]} 35. Re3 {[%clk 0:00:30]}  b4 {[%clk 0:00:36]} 36. Bc6 {[%clk 0:00:30]}  Rxe3 {[%clk 0:00:36]} 37. Rxe3 {[%clk 0:00:31]}  bxa3 {[%clk 0:00:36]} 38. bxa3 {[%clk 0:00:32]}  Rb2 {[%clk 0:00:36]} 39. Bxa4 {[%clk 0:00:31]}  Rd2 {[%clk 0:00:32]} 40. Rc3 {[%clk 0:00:22]}  Bd3 {[%clk 0:00:21]} 41. Bc6 {[%clk 0:00:21]}  Rd1 {[%clk 0:00:18]} 42. Be3 {[%clk 0:00:15]}  Bf1+ {[%clk 0:00:18]} 43. Kf2 {[%clk 0:00:15]}  Ba6 {[%clk 0:00:17]} 44. Be4 {[%clk 0:00:16]}  Rf1+ {[%clk 0:00:17]} 45. Kg2 {[%clk 0:00:17]}  Ra1 {[%clk 0:00:18]} 46. Bf2 {[%clk 0:00:17]}  Bxa3 {[%clk 0:00:18]} 47. Rxc7 {[%clk 0:00:16]}  Bf1+ {[%clk 0:00:15]} 48. Kh2 {[%clk 0:00:15]}  Ra2 {[%clk 0:00:13]} 49. Kg1 {[%clk 0:00:16]}  Bh3 {[%clk 0:00:14]} 50. Rxf7+ {[%clk 0:00:16]}  Kxf7 {[%clk 0:00:11]} 51. Bd5+ {[%clk 0:00:17]}  Be6 {[%clk 0:00:12]} 52. Bxa2 {[%clk 0:00:17]}  Bxa2 {[%clk 0:00:12]} 53. Be3 {[%clk 0:00:18]}  Bd5 {[%clk 0:00:12]} 54. Kf2 {[%clk 0:00:19]}  Ke6 {[%clk 0:00:12]} 55. g4 {[%clk 0:00:20]}  hxg4 {[%clk 0:00:11]} 56. fxg4 {[%clk 0:00:21]}  Be4 {[%clk 0:00:12]} 57. Kg3 {[%clk 0:00:20]}  Bd6+ {[%clk 0:00:12]} 58. Bf4 {[%clk 0:00:18]}  Bb4 {[%clk 0:00:10]} 59. h5 {[%clk 0:00:18]}  Bc3 {[%clk 0:00:08]} 60. Be3 {[%clk 0:00:17]}  Kd5 {[%clk 0:00:09]} 61. Kf4 {[%clk 0:00:17]}  Bxd4 {[%clk 0:00:04]} 62. Bxd4 {[%clk 0:00:16]}  Kxd4 {[%clk 0:00:05]} 63. h6 {[%clk 0:00:15]}  Bh7 {[%clk 0:00:03]} 64. Kf3 {[%clk 0:00:13]}  Ke5 {[%clk 0:00:03]} 65. Ke3 {[%clk 0:00:13]}  Bg6 {[%clk 0:00:03]} 66. Kf3 {[%clk 0:00:13]}  Ke6 {[%clk 0:00:02]} 67. g5 {[%clk 0:00:11]}  f5 {[%clk 0:00:02]} 68. Kf4 {[%clk 0:00:11]}  Kd5 {[%clk 0:00:03]} 69. Kf3 {[%clk 0:00:11]}  Ke5 {[%clk 0:00:03]} 70. h7 {[%clk 0:00:12]}  Bxh7 {[%clk 0:00:03]} 71. g6 {[%clk 0:00:11]}  Bxg6 {[%clk 0:00:04]} 72. Kg3 {[%clk 0:00:12]}  f4+ {[%clk 0:00:04]} 73. Kf3 {[%clk 0:00:13]}  Bh5+ {[%clk 0:00:05]} 74. Kf2 {[%clk 0:00:13]}  Ke4 {[%clk 0:00:06]} 75. Kf1 {[%clk 0:00:13]}  Bg4 {[%clk 0:00:06]} 76. Kf2 {[%clk 0:00:13]}  f3 {[%clk 0:00:05]} 77. Kg3 {[%clk 0:00:13]}  Ke3 {[%clk 0:00:05]} 78. Kh2 {[%clk 0:00:14]}  f2 {[%clk 0:00:06]} 79. Kg2 {[%clk 0:00:14]}  Bh3+ {[%clk 0:00:07]} 80. Kg3 {[%clk 0:00:10]}  f1=Q {[%clk 0:00:06]} 81. Kh4 {[%clk 0:00:10]}  Qg2 {[%clk 0:00:06]} 82. Kh5 {[%clk 0:00:11]}  Bf5 {[%clk 0:00:05]} 83. Kh6 {[%clk 0:00:11]}  Qg6# {[%clk 0:00:05]} 0-1


[Site "https://www.chess.com"]

[Event "Titled Tuesday Blitz May 23 Early 2023"]
[White "Toropov, Pavel"]
[Black "Alex_Sahakyan2006"]
[WhiteFideId "24129178"]
[WhiteElo "2182"]
[BlackElo "2679"]
[Result "1-0"]
[Round "03"]
[TimeControl "180+2"]
[Date "2023.05.23"]
[WhiteClock "0:00:13"]
[BlackClock "0:00:03"]

1. e4 {[%clk 0:02:56]}  g6 {[%clk 0:02:57]} 2. d4 {[%clk 0:02:56]}  Bg7 {[%clk 0:02:57]} 3. Nc3 {[%clk 0:02:57]}  a6 {[%clk 0:02:57]} 4. h3 {[%clk 0:02:57]}  b5 {[%clk 0:02:55]} 5. g4 {[%clk 0:02:57]}  Bb7 {[%clk 0:02:54]} 6. Bg2 {[%clk 0:02:56]}  h5 {[%clk 0:02:54]} 7. g5 {[%clk 0:02:56]}  d6 {[%clk 0:02:51]} 8. h4 {[%clk 0:02:53]}  Nd7 {[%clk 0:02:50]} 9. Nge2 {[%clk 0:02:53]}  c5 {[%clk 0:02:46]} 10. Be3 {[%clk 0:02:51]}  b4 {[%clk 0:02:24]} 11. Nd5 {[%clk 0:02:50]}  e6 {[%clk 0:02:22]} 12. Ndf4 {[%clk 0:02:19]}  cxd4 {[%clk 0:02:08]} 13. Nxd4 {[%clk 0:02:17]}  e5 {[%clk 0:02:07]} 14. Nde6 {[%clk 0:02:07]}  fxe6 {[%clk 0:01:59]} 15. Nxg6 {[%clk 0:01:53]}  Rh7 {[%clk 0:01:48]} 16. Qxd6 {[%clk 0:01:51]}  Kf7 {[%clk 0:01:42]} 17. O-O-O {[%clk 0:01:43]}  Bc8 {[%clk 0:01:00]} 18. Bh3 {[%clk 0:01:39]}  Qe8 {[%clk 0:00:50]} 19. f4 {[%clk 0:01:35]}  Bf8 {[%clk 0:00:19]} 20. Nxf8 {[%clk 0:00:55]}  Nxf8 {[%clk 0:00:15]} 21. f5 {[%clk 0:00:47]}  exf5 {[%clk 0:00:07]} 22. exf5 {[%clk 0:00:40]}  Kg7 {[%clk 0:00:07]} 23. g6 {[%clk 0:00:32]}  Rh6 {[%clk 0:00:06]} 24. Bg5 {[%clk 0:00:28]}  Ra7 {[%clk 0:00:03]} 25. f6+ {[%clk 0:00:17]}  Kxg6 {[%clk 0:00:03]} 26. f7+ {[%clk 0:00:17]}  Kxf7 {[%clk 0:00:03]} 27. Bxh6 {[%clk 0:00:17]}  Nxh6 {[%clk 0:00:03]} 28. Qxh6 {[%clk 0:00:17]}  Bxh3 {[%clk 0:00:03]} 29. Rxh3 {[%clk 0:00:17]}  Ne6 {[%clk 0:00:03]} 30. Rf1+ {[%clk 0:00:17]}  Nf4 {[%clk 0:00:03]} 31. Rg3 {[%clk 0:00:16]}  Ke7 {[%clk 0:00:02]} 32. Rg7+ {[%clk 0:00:15]}  Kd8 {[%clk 0:00:03]} 33. Rxa7 {[%clk 0:00:15]}  Qb5 {[%clk 0:00:03]} 34. Qd6+ {[%clk 0:00:13]}  Kc8 {[%clk 0:00:03]} 35. Qc7# {[%clk 0:00:13]} 1-0


[Site "https://www.chess.com"]

[Event "Titled Tuesday Blitz May 23 Early 2023"]
[White "Dehtiarov, Roman"]
[Black "Pham, Le Thao Nguyen"]
[WhiteFideId "14186640"]
[BlackFideId "12401226"]
[WhiteElo "2189"]
[BlackElo "2286"]
[Result "1-0"]
[Round "03"]
[TimeControl "180+2"]
[Date "2023.05.23"]
[WhiteClock "0:00:07"]
[BlackClock "0:00:06"]

1. c4 {[%clk 0:02:58]}  c6 {[%clk 0:02:54]} 2. Nf3 {[%clk 0:02:56]}  d5 {[%clk 0:02:53]} 3. e3 {[%clk 0:02:55]}  Nf6 {[%clk 0:02:29]} 4. Nc3 {[%clk 0:02:53]}  a6 {[%clk 0:02:29]} 5. d4 {[%clk 0:02:49]}  b5 {[%clk 0:02:27]} 6. cxd5 {[%clk 0:02:48]}  cxd5 {[%clk 0:02:27]} 7. Bd3 {[%clk 0:02:47]}  e6 {[%clk 0:02:23]} 8. O-O {[%clk 0:02:47]}  Bb7 {[%clk 0:02:23]} 9. h3 {[%clk 0:02:44]}  Nbd7 {[%clk 0:02:22]} 10. Bd2 {[%clk 0:02:40]}  Bd6 {[%clk 0:02:20]} 11. Qe2 {[%clk 0:02:39]}  O-O {[%clk 0:02:13]} 12. a3 {[%clk 0:02:38]}  Ne4 {[%clk 0:02:07]} 13. Rfc1 {[%clk 0:02:23]}  f5 {[%clk 0:02:01]} 14. Ne1 {[%clk 0:02:13]}  Qf6 {[%clk 0:01:40]} 15. f4 {[%clk 0:02:12]}  g5 {[%clk 0:01:32]} 16. Nf3 {[%clk 0:02:06]}  gxf4 {[%clk 0:00:57]} 17. exf4 {[%clk 0:02:07]}  Qh6 {[%clk 0:00:57]} 18. Bxe4 {[%clk 0:01:56]}  dxe4 {[%clk 0:00:53]} 19. Ne5 {[%clk 0:01:55]}  Nf6 {[%clk 0:00:53]} 20. Na2 {[%clk 0:01:40]}  Nd5 {[%clk 0:00:46]} 21. Nb4 {[%clk 0:01:30]}  Bxb4 {[%clk 0:00:18]} 22. Bxb4 {[%clk 0:01:23]}  Rfc8 {[%clk 0:00:17]} 23. Bd2 {[%clk 0:01:17]}  Qg7 {[%clk 0:00:16]} 24. Kh2 {[%clk 0:01:05]}  Rxc1 {[%clk 0:00:15]} 25. Rxc1 {[%clk 0:01:04]}  Rc8 {[%clk 0:00:16]} 26. Rxc8+ {[%clk 0:01:04]}  Bxc8 {[%clk 0:00:17]} 27. Bc1 {[%clk 0:00:58]}  Bd7 {[%clk 0:00:16]} 28. Qc2 {[%clk 0:00:57]}  Be8 {[%clk 0:00:11]} 29. Qc8 {[%clk 0:00:56]}  Qe7 {[%clk 0:00:12]} 30. Bd2 {[%clk 0:00:38]}  Kg7 {[%clk 0:00:12]} 31. Be1 {[%clk 0:00:30]}  Nxf4 {[%clk 0:00:11]} 32. Bg3 {[%clk 0:00:21]}  Ne2 {[%clk 0:00:11]} 33. Bf2 {[%clk 0:00:14]}  f4 {[%clk 0:00:11]} 34. d5 {[%clk 0:00:13]}  e3 {[%clk 0:00:11]} 35. Be1 {[%clk 0:00:12]}  exd5 {[%clk 0:00:11]} 36. Nf3 {[%clk 0:00:12]}  Qd7 {[%clk 0:00:09]} 37. Qb8 {[%clk 0:00:11]}  Qf5 {[%clk 0:00:09]} 38. Qxe8 {[%clk 0:00:11]}  d4 {[%clk 0:00:08]} 39. Qe7+ {[%clk 0:00:10]}  Kh6 {[%clk 0:00:08]} 40. Qd6+ {[%clk 0:00:09]}  Qg6 {[%clk 0:00:08]} 41. Qe5 {[%clk 0:00:08]}  Ng3 {[%clk 0:00:07]} 42. Qxf4+ {[%clk 0:00:07]}  Kh5 {[%clk 0:00:06]} 43. Qh4# {[%clk 0:00:07]} 1-0


[Site "https://www.chess.com"]

[Event "Titled Tuesday Blitz May 23 Early 2023"]
[White "Shukhman, Anna"]
[Black "Nagare Kaivalya Sandip"]
[WhiteFideId "54180058"]
[BlackFideId "25957929"]
[WhiteElo "2235"]
[BlackElo "2024"]
[Result "1-0"]
[Round "03"]
[TimeControl "180+2"]
[Date "2023.05.23"]
[WhiteClock "0:00:53"]
[BlackClock "0:00:22"]

1. e4 {[%clk 0:03:00]}  c5 {[%clk 0:02:58]} 2. Nf3 {[%clk 0:03:00]}  d6 {[%clk 0:02:56]} 3. d4 {[%clk 0:03:00]}  cxd4 {[%clk 0:02:57]} 4. Nxd4 {[%clk 0:03:01]}  Nf6 {[%clk 0:02:57]} 5. Nc3 {[%clk 0:03:01]}  a6 {[%clk 0:02:57]} 6. Qd3 {[%clk 0:03:01]}  e5 {[%clk 0:02:57]} 7. Nf5 {[%clk 0:03:02]}  Be6 {[%clk 0:02:54]} 8. Bg5 {[%clk 0:03:01]}  Bxf5 {[%clk 0:02:50]} 9. exf5 {[%clk 0:03:01]}  Be7 {[%clk 0:02:51]} 10. O-O-O {[%clk 0:03:00]}  Nbd7 {[%clk 0:02:51]} 11. f4 {[%clk 0:02:58]}  O-O {[%clk 0:02:50]} 12. fxe5 {[%clk 0:02:54]}  Nxe5 {[%clk 0:02:49]} 13. Qh3 {[%clk 0:02:49]}  Rc8 {[%clk 0:02:48]} 14. Bxf6 {[%clk 0:02:47]}  Bxf6 {[%clk 0:02:47]} 15. Nd5 {[%clk 0:02:48]}  Qa5 {[%clk 0:02:43]} 16. Nxf6+ {[%clk 0:02:41]}  gxf6 {[%clk 0:02:43]} 17. Kb1 {[%clk 0:02:42]}  Qc5 {[%clk 0:02:39]} 18. Bd3 {[%clk 0:02:39]}  d5 {[%clk 0:02:33]} 19. Rhe1 {[%clk 0:02:36]}  Rfe8 {[%clk 0:02:28]} 20. Qg3+ {[%clk 0:02:25]}  Kh8 {[%clk 0:02:28]} 21. Qh4 {[%clk 0:02:26]}  Rc6 {[%clk 0:02:18]} 22. Qh6 {[%clk 0:02:13]}  Rec8 {[%clk 0:02:13]} 23. Rxe5 {[%clk 0:02:09]}  Qd4 {[%clk 0:01:43]} 24. Ree1 {[%clk 0:02:03]}  Rb6 {[%clk 0:01:31]} 25. Qc1 {[%clk 0:01:59]}  a5 {[%clk 0:01:25]} 26. Ka1 {[%clk 0:01:40]}  a4 {[%clk 0:01:24]} 27. c3 {[%clk 0:01:39]}  Qc5 {[%clk 0:01:21]} 28. a3 {[%clk 0:01:34]}  Rbc6 {[%clk 0:01:05]} 29. Qe3 {[%clk 0:01:29]}  Qa5 {[%clk 0:00:57]} 30. Bb1 {[%clk 0:01:20]}  b5 {[%clk 0:00:45]} 31. Rxd5 {[%clk 0:01:18]}  Qc7 {[%clk 0:00:39]} 32. Qe7 {[%clk 0:01:13]}  Qxe7 {[%clk 0:00:36]} 33. Rxe7 {[%clk 0:01:14]}  b4 {[%clk 0:00:36]} 34. axb4 {[%clk 0:01:09]}  a3 {[%clk 0:00:35]} 35. bxa3 {[%clk 0:01:09]}  Rxc3 {[%clk 0:00:36]} 36. Kb2 {[%clk 0:01:08]}  R3c4 {[%clk 0:00:33]} 37. Rxf7 {[%clk 0:01:07]}  Rf4 {[%clk 0:00:33]} 38. Rdd7 {[%clk 0:01:04]}  Rh4 {[%clk 0:00:33]} 39. b5 {[%clk 0:01:00]}  Rg8 {[%clk 0:00:31]} 40. b6 {[%clk 0:00:55]}  Rxg2+ {[%clk 0:00:31]} 41. Bc2 {[%clk 0:00:55]}  Rg8 {[%clk 0:00:23]} 42. b7 {[%clk 0:00:53]}  Rb8 {[%clk 0:00:23]} 43. Rc7 {[%clk 0:00:53]}  Rxh2 {[%clk 0:00:22]} 44. Rc8+ {[%clk 0:00:53]} 1-0


[Site "https://www.chess.com"]